[Event "Titled Tuesday Blitz April 4 Late 2023"]
[White "Baskakov, Egor"]
[Black "Moral Garcia, Serafin"]
[WhiteFideId "24197866"]
[BlackFideId "2201925"]
[WhiteElo "2212"]
[BlackElo "2274"]
[Result "1-0"]
[Round "09"]
[TimeControl "180+2"]
[Date "2023.04.04"]
[WhiteClock "0:00:55"]
[BlackClock "0:00:01"]

1. e4 {[%clk 0:02:56]}  e5 {[%clk 0:02:57]} 2. Nc3 {[%clk 0:02:55]}  Nf6 {[%clk 0:02:57]} 3. g3 {[%clk 0:02:54]}  d5 {[%clk 0:02:55]} 4. exd5 {[%clk 0:02:55]}  Nxd5 {[%clk 0:02:56]} 5. Bg2 {[%clk 0:02:55]}  Nxc3 {[%clk 0:02:55]} 6. bxc3 {[%clk 0:02:54]}  Nc6 {[%clk 0:02:54]} 7. d3 {[%clk 0:02:54]}  Bc5 {[%clk 0:02:53]} 8. Ne2 {[%clk 0:02:54]}  O-O {[%clk 0:02:53]} 9. O-O {[%clk 0:02:55]}  Bb6 {[%clk 0:02:52]} 10. h3 {[%clk 0:02:54]}  Be6 {[%clk 0:02:49]} 11. c4 {[%clk 0:02:54]}  Qd7 {[%clk 0:02:43]} 12. Kh2 {[%clk 0:02:54]}  Rab8 {[%clk 0:02:42]} 13. f4 {[%clk 0:02:51]}  f6 {[%clk 0:02:30]} 14. Bb2 {[%clk 0:02:47]}  Rbd8 {[%clk 0:02:19]} 15. Bc3 {[%clk 0:02:37]}  Rfe8 {[%clk 0:02:11]} 16. g4 {[%clk 0:02:33]}  exf4 {[%clk 0:02:09]} 17. Nxf4 {[%clk 0:02:34]}  Bf7 {[%clk 0:02:09]} 18. Nd5 {[%clk 0:02:30]}  Bd4 {[%clk 0:02:04]} 19. Qd2 {[%clk 0:02:24]}  Bxc3 {[%clk 0:01:47]} 20. Qxc3 {[%clk 0:02:25]}  Re6 {[%clk 0:01:47]} 21. Rae1 {[%clk 0:02:16]}  Rde8 {[%clk 0:01:45]} 22. Kg1 {[%clk 0:02:09]}  Qd6 {[%clk 0:01:36]} 23. Rxe6 {[%clk 0:02:07]}  Rxe6 {[%clk 0:01:33]} 24. Qd2 {[%clk 0:02:06]}  h6 {[%clk 0:01:24]} 25. Qf2 {[%clk 0:02:03]}  b6 {[%clk 0:01:22]} 26. h4 {[%clk 0:01:59]}  Ne5 {[%clk 0:01:18]} 27. Qg3 {[%clk 0:01:51]}  c6 {[%clk 0:01:08]} 28. Nf4 {[%clk 0:01:51]}  Re8 {[%clk 0:01:03]} 29. g5 {[%clk 0:01:51]}  fxg5 {[%clk 0:00:57]} 30. hxg5 {[%clk 0:01:52]}  hxg5 {[%clk 0:00:54]} 31. Qxg5 {[%clk 0:01:53]}  Qd8 {[%clk 0:00:36]} 32. Qxd8 {[%clk 0:01:47]}  Rxd8 {[%clk 0:00:36]} 33. a4 {[%clk 0:01:48]}  c5 {[%clk 0:00:36]} 34. a5 {[%clk 0:01:48]}  Rb8 {[%clk 0:00:32]} 35. Rb1 {[%clk 0:01:42]}  Kf8 {[%clk 0:00:30]} 36. Nd5 {[%clk 0:01:41]}  Bxd5 {[%clk 0:00:29]} 37. Bxd5 {[%clk 0:01:39]}  Ke7 {[%clk 0:00:29]} 38. Kf2 {[%clk 0:01:37]}  Kd6 {[%clk 0:00:29]} 39. axb6 {[%clk 0:01:35]}  axb6 {[%clk 0:00:29]} 40. Rg1 {[%clk 0:01:35]}  g6 {[%clk 0:00:26]} 41. Ke3 {[%clk 0:01:34]}  b5 {[%clk 0:00:26]} 42. d4 {[%clk 0:01:18]}  Nxc4+ {[%clk 0:00:24]} 43. Bxc4 {[%clk 0:01:18]}  bxc4 {[%clk 0:00:24]} 44. Rxg6+ {[%clk 0:01:17]}  Kc7 {[%clk 0:00:22]} 45. dxc5 {[%clk 0:01:17]}  Rb2 {[%clk 0:00:22]} 46. c3 {[%clk 0:01:17]}  Rh2 {[%clk 0:00:18]} 47. Kd4 {[%clk 0:01:15]}  Rh4+ {[%clk 0:00:18]} 48. Kd5 {[%clk 0:01:16]}  Rh5+ {[%clk 0:00:18]} 49. Kxc4 {[%clk 0:01:16]}  Rh1 {[%clk 0:00:17]} 50. Ra6 {[%clk 0:01:11]}  Rg1 {[%clk 0:00:16]} 51. Ra4 {[%clk 0:01:08]}  Kc6 {[%clk 0:00:14]} 52. Ra6+ {[%clk 0:01:08]}  Kc7 {[%clk 0:00:14]} 53. Rd6 {[%clk 0:01:09]}  Rh1 {[%clk 0:00:14]} 54. Rg6 {[%clk 0:01:03]}  Rf1 {[%clk 0:00:12]} 55. c6 {[%clk 0:01:01]}  Rh1 {[%clk 0:00:10]} 56. Kb4 {[%clk 0:01:00]}  Rf1 {[%clk 0:00:08]} 57. c4 {[%clk 0:01:00]}  Rb1+ {[%clk 0:00:01]} 58. Kc5 {[%clk 0:01:00]}  Rh1 {[%clk 0:00:02]} 59. Rg7+ {[%clk 0:01:01]}  Kc8 {[%clk 0:00:02]} 60. Kb5 {[%clk 0:00:57]}  Rf1 {[%clk 0:00:02]} 61. c7 {[%clk 0:00:55]}  Rh1 {[%clk 0:00:01]} 62. c5 {[%clk 0:00:55]} 1-0


[Site "https://www.chess.com"]

[Event "Titled Tuesday Blitz April 4 Late 2023"]
[White "Jimenez Jimenez, Leandro"]
[Black "Sieciechowicz, Marcin"]
[WhiteFideId "6415253"]
[BlackFideId "1130170"]
[WhiteElo "2263"]
[BlackElo "2302"]
[Result "0-1"]
[Round "09"]
[TimeControl "180+2"]
[Date "2023.04.04"]
[WhiteClock "0:00:10"]
[BlackClock "0:01:32"]

1. d4 {[%clk 0:03:00]}  Nf6 {[%clk 0:02:59]} 2. c4 {[%clk 0:02:59]}  g6 {[%clk 0:02:59]} 3. Nc3 {[%clk 0:02:58]}  Bg7 {[%clk 0:03:00]} 4. e4 {[%clk 0:02:59]}  d6 {[%clk 0:03:00]} 5. f3 {[%clk 0:02:59]}  O-O {[%clk 0:03:01]} 6. Be3 {[%clk 0:02:59]}  c5 {[%clk 0:03:01]} 7. Nge2 {[%clk 0:02:59]}  Nc6 {[%clk 0:03:01]} 8. d5 {[%clk 0:02:58]}  Ne5 {[%clk 0:03:01]} 9. Ng3 {[%clk 0:02:58]}  h5 {[%clk 0:03:01]} 10. Be2 {[%clk 0:02:57]}  h4 {[%clk 0:03:02]} 11. Nf1 {[%clk 0:02:58]}  e6 {[%clk 0:03:02]} 12. Nd2 {[%clk 0:02:54]}  exd5 {[%clk 0:02:59]} 13. cxd5 {[%clk 0:02:55]}  Bd7 {[%clk 0:02:56]} 14. a4 {[%clk 0:02:49]}  a6 {[%clk 0:02:54]} 15. O-O {[%clk 0:02:43]}  h3 {[%clk 0:02:52]} 16. g4 {[%clk 0:02:42]}  b5 {[%clk 0:02:52]} 17. axb5 {[%clk 0:02:39]}  axb5 {[%clk 0:02:53]} 18. Rxa8 {[%clk 0:02:39]}  Qxa8 {[%clk 0:02:52]} 19. Nxb5 {[%clk 0:02:34]}  Bxb5 {[%clk 0:02:51]} 20. Bxb5 {[%clk 0:02:33]}  Qb7 {[%clk 0:02:50]} 21. Be2 {[%clk 0:01:43]}  Qxb2 {[%clk 0:02:50]} 22. f4 {[%clk 0:01:28]}  Nexg4 {[%clk 0:02:39]} 23. Bxg4 {[%clk 0:01:25]}  Nxe4 {[%clk 0:02:39]} 24. Bf3 {[%clk 0:01:14]}  Bd4 {[%clk 0:02:01]} 25. Nxe4 {[%clk 0:00:47]}  Bxe3+ {[%clk 0:02:01]} 26. Kh1 {[%clk 0:00:47]}  Bxf4 {[%clk 0:02:01]} 27. Rf2 {[%clk 0:00:41]}  Qe5 {[%clk 0:02:01]} 28. Re2 {[%clk 0:00:22]}  Ra8 {[%clk 0:01:34]} 29. Nxc5 {[%clk 0:00:13]}  Qc3 {[%clk 0:01:34]} 30. Nb3 {[%clk 0:00:11]}  Qxf3+ {[%clk 0:01:33]} 31. Kg1 {[%clk 0:00:10]}  Be3+ {[%clk 0:01:32]} 0-1


[Site "https://www.chess.com"]

[Event "Titled Tuesday Blitz April 4 Late 2023"]
[White "Han, Yichen"]
[Black "Fernandez Sanchez, Mario Andres"]
[WhiteFideId "1054430"]
[BlackFideId "6501621"]
[WhiteElo "2342"]
[BlackElo "2050"]
[Result "1-0"]
[Round "09"]
[TimeControl "180+2"]
[Date "2023.04.04"]
[WhiteClock "0:00:04"]
[BlackClock "0:01:00"]

1. c4 {[%clk 0:03:00]}  c5 {[%clk 0:03:00]} 2. Nf3 {[%clk 0:02:58]}  Nf6 {[%clk 0:03:00]} 3. Nc3 {[%clk 0:02:58]}  Nc6 {[%clk 0:03:01]} 4. e4 {[%clk 0:02:58]}  g6 {[%clk 0:03:01]} 5. d3 {[%clk 0:02:56]}  d6 {[%clk 0:03:01]} 6. g3 {[%clk 0:02:54]}  Bg7 {[%clk 0:03:01]} 7. Bg2 {[%clk 0:02:55]}  O-O {[%clk 0:03:01]} 8. O-O {[%clk 0:02:56]}  Bg4 {[%clk 0:03:01]} 9. Be3 {[%clk 0:02:54]}  e5 {[%clk 0:02:57]} 10. h3 {[%clk 0:02:48]}  Bxf3 {[%clk 0:02:57]} 11. Qxf3 {[%clk 0:02:49]}  Nd4 {[%clk 0:02:57]} 12. Bxd4 {[%clk 0:02:49]}  cxd4 {[%clk 0:02:56]} 13. Ne2 {[%clk 0:02:44]}  a6 {[%clk 0:02:49]} 14. a4 {[%clk 0:02:42]}  Qb6 {[%clk 0:02:47]} 15. Rfb1 {[%clk 0:02:42]}  Qb4 {[%clk 0:02:41]} 16. g4 {[%clk 0:02:32]}  b5 {[%clk 0:02:39]} 17. b3 {[%clk 0:02:28]}  Rfb8 {[%clk 0:02:33]} 18. axb5 {[%clk 0:02:05]}  axb5 {[%clk 0:02:34]} 19. Rxa8 {[%clk 0:01:59]}  Rxa8 {[%clk 0:02:35]} 20. cxb5 {[%clk 0:01:58]}  Qxb5 {[%clk 0:02:34]} 21. Ng3 {[%clk 0:01:57]}  Ra3 {[%clk 0:02:32]} 22. Qd1 {[%clk 0:01:55]}  Nd7 {[%clk 0:02:31]} 23. Qc2 {[%clk 0:01:40]}  Nc5 {[%clk 0:02:25]} 24. b4 {[%clk 0:01:26]}  Qxd3 {[%clk 0:02:24]} 25. Qxd3 {[%clk 0:01:07]}  Nxd3 {[%clk 0:02:23]} 26. b5 {[%clk 0:01:08]}  Ra7 {[%clk 0:02:18]} 27. Bf1 {[%clk 0:01:03]}  Nc5 {[%clk 0:02:17]} 28. Bc4 {[%clk 0:01:01]}  Bh6 {[%clk 0:02:11]} 29. b6 {[%clk 0:00:58]}  Rb7 {[%clk 0:02:10]} 30. Bd5 {[%clk 0:00:58]}  Rb8 {[%clk 0:02:10]} 31. b7 {[%clk 0:00:48]}  d3 {[%clk 0:02:06]} 32. Kf1 {[%clk 0:00:37]}  Bf4 {[%clk 0:01:52]} 33. Ra1 {[%clk 0:00:31]}  Nxb7 {[%clk 0:01:52]} 34. Rb1 {[%clk 0:00:31]}  Rc8 {[%clk 0:01:48]} 35. Bxb7 {[%clk 0:00:21]}  Rc2 {[%clk 0:01:43]} 36. Rd1 {[%clk 0:00:20]}  d2 {[%clk 0:01:32]} 37. Ke2 {[%clk 0:00:18]}  Kg7 {[%clk 0:01:30]} 38. Nf1 {[%clk 0:00:14]}  h5 {[%clk 0:01:26]} 39. Bd5 {[%clk 0:00:11]}  hxg4 {[%clk 0:01:25]} 40. hxg4 {[%clk 0:00:12]}  f6 {[%clk 0:01:14]} 41. Nxd2 {[%clk 0:00:12]}  Kh6 {[%clk 0:01:13]} 42. Kd3 {[%clk 0:00:11]}  Rb2 {[%clk 0:01:13]} 43. f3 {[%clk 0:00:09]}  Kg5 {[%clk 0:01:10]} 44. Nc4 {[%clk 0:00:08]}  Rf2 {[%clk 0:01:08]} 45. Nxd6 {[%clk 0:00:04]}  Rxf3+ {[%clk 0:01:08]} 46. Ke2 {[%clk 0:00:04]}  Re3+ {[%clk 0:01:07]} 47. Kf2 {[%clk 0:00:04]}  Ra3 {[%clk 0:01:06]} 48. Be6 {[%clk 0:00:03]}  Ra6 {[%clk 0:01:01]} 49. Nf7+ {[%clk 0:00:03]}  Kh4 {[%clk 0:01:00]} 50. Rh1+ {[%clk 0:00:04]} 1-0


[Site "https://www.chess.com"]

[Event "Titled Tuesday Blitz April 4 Late 2023"]
[White "Vlassov, Nikolai"]
[Black "Erzhanov, Arman"]
[WhiteFideId "4103360"]
[BlackFideId "4138821"]
[WhiteElo "2324"]
[BlackElo "2138"]
[Result "0-1"]
[Round "09"]
[TimeControl "180+2"]
[Date "2023.04.04"]
[WhiteClock "0:00:06"]
[BlackClock "0:00:14"]

1. e4 {[%clk 0:02:53]}  d6 {[%clk 0:03:00]} 2. f4 {[%clk 0:02:52]}  d5 {[%clk 0:02:59]} 3. exd5 {[%clk 0:02:52]}  Qxd5 {[%clk 0:02:58]} 4. Nc3 {[%clk 0:02:51]}  Qa5 {[%clk 0:02:58]} 5. Nf3 {[%clk 0:02:51]}  Nf6 {[%clk 0:02:57]} 6. d4 {[%clk 0:02:43]}  Bg4 {[%clk 0:02:57]} 7. h3 {[%clk 0:02:42]}  Bxf3 {[%clk 0:02:49]} 8. Qxf3 {[%clk 0:02:42]}  Nc6 {[%clk 0:02:50]} 9. Bb5 {[%clk 0:02:41]}  O-O-O {[%clk 0:02:21]} 10. Bxc6 {[%clk 0:02:41]}  bxc6 {[%clk 0:02:22]} 11. Qxc6 {[%clk 0:02:33]}  Qb6 {[%clk 0:02:15]} 12. Qa8+ {[%clk 0:02:14]}  Qb8 {[%clk 0:01:52]} 13. Qxb8+ {[%clk 0:02:13]}  Kxb8 {[%clk 0:01:51]} 14. Be3 {[%clk 0:02:13]}  e6 {[%clk 0:01:50]} 15. O-O-O {[%clk 0:02:12]}  Bb4 {[%clk 0:01:49]} 16. Ne2 {[%clk 0:02:09]}  Nd5 {[%clk 0:01:40]} 17. Bf2 {[%clk 0:02:05]}  h5 {[%clk 0:01:33]} 18. Rd3 {[%clk 0:01:57]}  Bd6 {[%clk 0:01:28]} 19. Rf3 {[%clk 0:01:46]}  g6 {[%clk 0:01:26]} 20. c4 {[%clk 0:01:46]}  Nf6 {[%clk 0:01:21]} 21. Bh4 {[%clk 0:01:37]}  Be7 {[%clk 0:01:19]} 22. Rd1 {[%clk 0:01:37]}  Rd7 {[%clk 0:01:17]} 23. Rfd3 {[%clk 0:01:22]}  c6 {[%clk 0:01:16]} 24. Nc3 {[%clk 0:01:13]}  Rhd8 {[%clk 0:01:16]} 25. Bf2 {[%clk 0:01:07]}  Bd6 {[%clk 0:01:03]} 26. Be3 {[%clk 0:01:04]}  h4 {[%clk 0:00:55]} 27. Ne2 {[%clk 0:01:03]}  Nh5 {[%clk 0:00:55]} 28. Rf1 {[%clk 0:01:02]}  Ng7 {[%clk 0:00:55]} 29. Rf3 {[%clk 0:01:01]}  Nf5 {[%clk 0:00:55]} 30. Bf2 {[%clk 0:01:01]}  Be7 {[%clk 0:00:55]} 31. Kc2 {[%clk 0:00:58]}  Bf6 {[%clk 0:00:56]} 32. g4 {[%clk 0:00:29]}  hxg3 {[%clk 0:00:55]} 33. Nxg3 {[%clk 0:00:27]}  Nxd4+ {[%clk 0:00:33]} 34. Bxd4 {[%clk 0:00:27]}  Bxd4 {[%clk 0:00:33]} 35. Ne2 {[%clk 0:00:25]}  Bg7 {[%clk 0:00:30]} 36. b4 {[%clk 0:00:23]}  Kc7 {[%clk 0:00:29]} 37. a4 {[%clk 0:00:22]}  Bf8 {[%clk 0:00:28]} 38. Kc3 {[%clk 0:00:20]}  Bxb4+ {[%clk 0:00:27]} 39. Kxb4 {[%clk 0:00:19]}  Rxd3 {[%clk 0:00:27]} 40. Rf1 {[%clk 0:00:19]}  Rd2 {[%clk 0:00:27]} 41. Nc3 {[%clk 0:00:18]}  Rb8+ {[%clk 0:00:28]} 42. Kc5 {[%clk 0:00:18]}  Rc2 {[%clk 0:00:27]} 43. Nd1 {[%clk 0:00:15]}  Rb3 {[%clk 0:00:26]} 44. f5 {[%clk 0:00:13]}  exf5 {[%clk 0:00:23]} 45. Re1 {[%clk 0:00:13]}  Kd7 {[%clk 0:00:23]} 46. Ne3 {[%clk 0:00:13]}  Rcc3 {[%clk 0:00:19]} 47. Ng2 {[%clk 0:00:09]}  Rf3 {[%clk 0:00:16]} 48. Rd1+ {[%clk 0:00:08]}  Rbd3 {[%clk 0:00:16]} 49. Rb1 {[%clk 0:00:08]}  Rb3 {[%clk 0:00:16]} 50. Rd1+ {[%clk 0:00:09]}  Rfd3 {[%clk 0:00:16]} 51. Re1 {[%clk 0:00:09]}  g5 {[%clk 0:00:16]} 52. h4 {[%clk 0:00:09]}  f6 {[%clk 0:00:16]} 53. hxg5 {[%clk 0:00:08]}  fxg5 {[%clk 0:00:16]} 54. Re5 {[%clk 0:00:09]}  Rf3 {[%clk 0:00:16]} 55. Ne1 {[%clk 0:00:08]}  Rf4 {[%clk 0:00:15]} 56. Re2 {[%clk 0:00:07]}  Rc3 {[%clk 0:00:14]} 57. Rd2+ {[%clk 0:00:07]}  Kc7 {[%clk 0:00:14]} 58. Re2 {[%clk 0:00:06]}  Rcxc4# {[%clk 0:00:14]} 0-1


[Site "https://www.chess.com"]

[Event "Titled Tuesday Blitz April 4 Late 2023"]
[White "Poliakova, Varvara"]
[Black "QuiesPrecatio"]
[WhiteFideId "13518313"]
[WhiteElo "2075"]
[BlackElo "2465"]
[Result "1-0"]
[Round "09"]
[TimeControl "180+2"]
[Date "2023.04.04"]
[WhiteClock "0:01:24"]
[BlackClock "0:01:39"]

1. e4 {[%clk 0:02:56]}  c5 {[%clk 0:02:59]} 2. Nf3 {[%clk 0:02:57]}  Nc6 {[%clk 0:02:59]} 3. d4 {[%clk 0:02:56]}  cxd4 {[%clk 0:03:00]} 4. Nxd4 {[%clk 0:02:57]}  Nf6 {[%clk 0:03:01]} 5. Nc3 {[%clk 0:02:57]}  e5 {[%clk 0:03:02]} 6. Ndb5 {[%clk 0:02:51]}  d6 {[%clk 0:03:02]} 7. Bg5 {[%clk 0:02:46]}  a6 {[%clk 0:03:02]} 8. Na3 {[%clk 0:02:45]}  b5 {[%clk 0:03:02]} 9. Nd5 {[%clk 0:02:44]}  Be7 {[%clk 0:03:02]} 10. Bxf6 {[%clk 0:02:42]}  Bxf6 {[%clk 0:03:03]} 11. c3 {[%clk 0:02:43]}  Bb7 {[%clk 0:03:03]} 12. Nc2 {[%clk 0:02:40]}  Ne7 {[%clk 0:03:03]} 13. Nce3 {[%clk 0:02:39]}  Bg5 {[%clk 0:03:02]} 14. Qd3 {[%clk 0:02:31]}  O-O {[%clk 0:02:58]} 15. g3 {[%clk 0:02:27]}  Bxe3 {[%clk 0:02:49]} 16. fxe3 {[%clk 0:02:28]}  Bxd5 {[%clk 0:02:36]} 17. exd5 {[%clk 0:02:27]}  f5 {[%clk 0:02:36]} 18. Bg2 {[%clk 0:02:20]}  Qb6 {[%clk 0:02:30]} 19. O-O {[%clk 0:02:17]}  e4 {[%clk 0:02:26]} 20. Qd2 {[%clk 0:02:15]}  Rac8 {[%clk 0:02:22]} 21. Rad1 {[%clk 0:02:12]}  Rc5 {[%clk 0:02:21]} 22. Qc2 {[%clk 0:02:09]}  Kh8 {[%clk 0:02:10]} 23. Bxe4 {[%clk 0:02:05]}  Rc4 {[%clk 0:02:03]} 24. Rd4 {[%clk 0:02:03]}  Rxd4 {[%clk 0:01:44]} 25. exd4 {[%clk 0:02:04]}  Re8 {[%clk 0:01:45]} 26. Bxf5 {[%clk 0:02:01]}  Nxd5 {[%clk 0:01:45]} 27. Bxh7 {[%clk 0:01:56]}  Qd8 {[%clk 0:01:42]} 28. Bg6 {[%clk 0:01:52]}  Ne3 {[%clk 0:01:42]} 29. Qe2 {[%clk 0:01:49]}  Nxf1 {[%clk 0:01:37]} 30. Qh5+ {[%clk 0:01:47]}  Kg8 {[%clk 0:01:37]} 31. Qh7+ {[%clk 0:01:21]}  Kf8 {[%clk 0:01:37]} 32. Qh8+ {[%clk 0:01:22]}  Ke7 {[%clk 0:01:38]} 33. Qxg7+ {[%clk 0:01:23]}  Ke6 {[%clk 0:01:39]} 34. Qf7# {[%clk 0:01:24]} 1-0


[Site "https://www.chess.com"]

[Event "Titled Tuesday Blitz April 4 Late 2023"]
[White "Goroshkov, Maksym"]
[Black "WindWhistler11"]
[WhiteFideId "14142716"]
[WhiteElo "2322"]
[BlackElo "2459"]
[Result "1-0"]
[Round "09"]
[TimeControl "180+2"]
[Date "2023.04.04"]
[WhiteClock "0:00:32"]
[BlackClock "0:00:12"]

1. e4 {[%clk 0:02:55]}  e6 {[%clk 0:02:59]} 2. d4 {[%clk 0:02:55]}  d5 {[%clk 0:02:59]} 3. exd5 {[%clk 0:02:56]}  exd5 {[%clk 0:02:59]} 4. c4 {[%clk 0:02:57]}  Nf6 {[%clk 0:02:59]} 5. Nc3 {[%clk 0:02:57]}  Bb4 {[%clk 0:02:57]} 6. Nf3 {[%clk 0:02:58]}  Nc6 {[%clk 0:02:57]} 7. Be2 {[%clk 0:02:57]}  dxc4 {[%clk 0:02:56]} 8. Bxc4 {[%clk 0:02:57]}  O-O {[%clk 0:02:56]} 9. O-O {[%clk 0:02:57]}  Bg4 {[%clk 0:02:56]} 10. Be3 {[%clk 0:02:57]}  Ne7 {[%clk 0:02:39]} 11. Be2 {[%clk 0:02:54]}  Nf5 {[%clk 0:02:36]} 12. Ne5 {[%clk 0:02:49]}  Nxe3 {[%clk 0:02:30]} 13. fxe3 {[%clk 0:02:49]}  Be6 {[%clk 0:02:29]} 14. Bd3 {[%clk 0:02:45]}  c5 {[%clk 0:02:22]} 15. Ne4 {[%clk 0:02:41]}  Nxe4 {[%clk 0:02:07]} 16. Bxe4 {[%clk 0:02:40]}  cxd4 {[%clk 0:02:04]} 17. exd4 {[%clk 0:02:41]}  Qb6 {[%clk 0:01:57]} 18. Kh1 {[%clk 0:02:32]}  Bd6 {[%clk 0:01:55]} 19. Rf4 {[%clk 0:02:21]}  h6 {[%clk 0:01:37]} 20. Bc2 {[%clk 0:01:58]}  Bxe5 {[%clk 0:01:25]} 21. dxe5 {[%clk 0:01:56]}  Qxb2 {[%clk 0:01:25]} 22. Rb1 {[%clk 0:01:56]}  Qxe5 {[%clk 0:01:25]} 23. Re4 {[%clk 0:01:52]}  Qd5 {[%clk 0:01:16]} 24. Rd4 {[%clk 0:01:51]}  Qxa2 {[%clk 0:01:10]} 25. Rxb7 {[%clk 0:01:31]}  Rac8 {[%clk 0:01:09]} 26. Rd2 {[%clk 0:01:30]}  a5 {[%clk 0:01:00]} 27. Bh7+ {[%clk 0:01:28]}  Kxh7 {[%clk 0:00:58]} 28. Rxa2 {[%clk 0:01:29]}  Bxa2 {[%clk 0:00:59]} 29. h3 {[%clk 0:01:23]}  Be6 {[%clk 0:00:58]} 30. Ra7 {[%clk 0:01:22]}  Rc5 {[%clk 0:00:53]} 31. Qd2 {[%clk 0:01:14]}  Rb8 {[%clk 0:00:44]} 32. Rxa5 {[%clk 0:01:10]}  Rb1+ {[%clk 0:00:44]} 33. Kh2 {[%clk 0:01:09]}  Rcc1 {[%clk 0:00:45]} 34. Qd3+ {[%clk 0:01:07]}  g6 {[%clk 0:00:44]} 35. Ra3 {[%clk 0:01:03]}  Rh1+ {[%clk 0:00:40]} 36. Kg3 {[%clk 0:01:03]}  Rhd1 {[%clk 0:00:37]} 37. Qc3 {[%clk 0:01:00]}  Rb5 {[%clk 0:00:29]} 38. Kh2 {[%clk 0:00:55]}  Bd5 {[%clk 0:00:22]} 39. Ra7 {[%clk 0:00:47]}  Rdb1 {[%clk 0:00:20]} 40. Rd7 {[%clk 0:00:38]}  R1b3 {[%clk 0:00:15]} 41. Qf6 {[%clk 0:00:33]}  Rb2 {[%clk 0:00:12]} 42. Rxd5 {[%clk 0:00:32]} 1-0


[Site "https://www.chess.com"]